bitfinex-derivatives/quotes_BTCF0:USTF0_20250318
["timestamp","ask_amount","ask_price","bid_price","bid_amount"]
[1742256001487,0.41204825,84046.0,84045.0,0.0977]
[1742256002782,0.04529668,84046.0,84045.0,0.0977]
[1742256003587,0.16428998,84046.0,84045.0,0.0977]
[1742256003977,0.20074114,84046.0,84045.0,0.0977]
[1742256005184,0.13884114,84046.0,84045.0,0.2166933]
[1742256005484,0.19548998,84046.0,84045.0,0.0977]
[1742256005882,0.01384615,84046.0,84045.0,0.2166933]
[1742256006075,0.1189919,84046.0,84045.0,0.2166933]
[1742256006391,0.13282067,84046.0,84045.0,0.3309333]
[1742256006583,0.1189919,84046.0,84045.0,0.3309333]
[1742256006789,0.13282171,84046.0,84045.0,0.3309333]
[1742256007282,0.1189919,84046.0,84045.0,0.3309333]
[1742256007482,0.0594931,84050.0,84049.0,0.1189877]
[1742256007678,0.11916179,84053.0,84052.0,0.1189834]
[1742256007985,0.13295034,84053.0,84052.0,0.1189834]
[1742256008387,0.13295034,84053.0,84052.0,0.033]
[1742256008890,0.13295034,84053.0,84052.0,0.035]
[1742256009293,0.19755034,84053.0,84052.0,0.1539834]
[1742256009483,0.19755034,84053.0,84052.0,0.035]
[1742256009683,0.19755034,84053.0,84052.0,0.036]
[1742256009982,0.19755034,84053.0,84052.0,0.1549834]
[1742256010485,0.19755034,84053.0,84052.0,0.036]
[1742256010789,0.19755034,84053.0,84052.0,0.206]
[1742256011188,0.19755034,84053.0,84052.0,0.036]
[1742256011492,0.19755034,84053.0,84052.0,0.003]
[1742256011493,0.20350117,84053.0,84052.0,0.003]
[1742256014380,0.21836613,84053.0,84052.0,0.003]
[1742256014584,0.20350117,84053.0,84052.0,0.003]
[1742256014888,0.21835271,84053.0,84052.0,0.003]
[1742256015380,0.24855271,84053.0,84052.0,0.003]
[1742256018082,0.24857678,84053.0,84052.0,0.003]
[1742256018285,0.1189905,84047.0,84046.0,4e-05]
[1742256018483,0.4995551,84047.0,84046.0,4e-05]
[1742256018986,0.5639551,84047.0,84046.0,4e-05]
[1742256019585,0.1190103,84033.0,84032.0,0.0306]
[1742256019893,0.60786326,84033.0,84032.0,0.0306]
[1742256020393,0.60386326,84033.0,84032.0,0.0306]
[1742256020594,0.1190344,84016.0,84015.0,0.2138324]
[1742256020781,0.1190344,84016.0,84015.0,0.3338324]
[1742256020978,0.3608,84021.0,84017.0,0.0595164]
[1742256021178,0.3608,84021.0,84020.0,0.1190288]
[1742256021380,0.3588,84021.0,84020.0,0.2290288]
[1742256021581,0.1190273,84021.0,84020.0,0.2290288]
[1742256022179,0.1190273,84021.0,84020.0,0.11]
[1742256022393,0.1190273,84021.0,84020.0,0.1401]
[1742256022781,0.1190273,84021.0,84020.0,0.2601288]
[1742256022981,0.1190273,84021.0,84020.0,0.1411]
[1742256023189,0.1190273,84021.0,84020.0,0.2601288]
[1742256024188,0.1190273,84021.0,84020.0,0.0311]
[1742256024486,0.1190273,84021.0,84020.0,0.0301]
[1742256025285,0.1190273,84021.0,84020.0,0.1491288]
[1742256025680,0.1190273,84021.0,84020.0,0.0301]
[1742256025891,0.1190273,84021.0,84020.0,0.0624]
[1742256026797,0.1491273,84021.0,84020.0,0.1814288]
[1742256027387,0.1190273,84021.0,84020.0,0.2914288]
[1742256027689,0.1190273,84021.0,84020.0,0.1814288]
[1742256028794,0.1517273,84021.0,84020.0,0.1814288]
[1742256030093,0.1517273,84021.0,84020.0,0.0624]
[1742256030499,0.1517273,84021.0,84020.0,0.1814288]
[1742256031000,0.1517273,84021.0,84020.0,0.0624]
[1742256031292,0.1517273,84021.0,84020.0,0.1814288]
[1742256034705,0.1517273,84021.0,84020.0,0.0624]
[1742256035400,0.1517273,84021.0,84020.0,0.1814288]
[1742256036393,0.1517273,84021.0,84020.0,0.0624]
[1742256037000,0.1846273,84021.0,84020.0,0.0624]
[1742256037403,0.1846273,84021.0,84020.0,0.1814288]
[1742256037604,0.1846273,84021.0,84020.0,0.0624]
[1742256037908,0.1846273,84021.0,84020.0,0.1814288]
[1742256038109,0.1846273,84021.0,84020.0,0.0624]
[1742256039901,0.1190316,84018.0,84017.0,4e-05]
[1742256040307,0.1819316,84018.0,84017.0,0.06364]
[1742256041312,0.1819316,84018.0,84017.0,0.06464]
[1742256041712,0.1819316,84018.0,84017.0,0.183673]
[1742256041908,0.1819316,84018.0,84017.0,0.06464]
[1742256042214,0.1819316,84018.0,84017.0,0.183673]
[1742256042613,0.1819316,84018.0,84017.0,0.06464]
[1742256043814,0.5427316,84018.0,84017.0,0.0646]
[1742256044212,0.55476614,84018.0,84017.0,0.0646]
[1742256044517,0.5427316,84018.0,84017.0,0.0646]
[1742256044717,0.55441684,84018.0,84017.0,0.0646]
[1742256044920,0.5427316,84018.0,84017.0,0.0646]
[1742256047015,0.55628178,84018.0,84017.0,0.0646]
[1742256047616,0.55628178,84018.0,84017.0,0.183633]
[1742256047912,0.5427316,84018.0,84017.0,0.183633]
[1742256049009,0.1819316,84018.0,84017.0,0.183633]
[1742256049414,0.0135668,84018.0,84017.0,0.373633]
[1742256049613,0.1190316,84018.0,84017.0,0.2546]
[1742256049819,0.1190316,84018.0,84017.0,0.373633]
[1742256050219,0.1827316,84018.0,84017.0,0.373633]
[1742256052609,0.1827316,84018.0,84017.0,0.5874654]
[1742256055514,0.1827316,84018.0,84017.0,0.373633]
[1742256061830,0.0637,84018.0,84017.0,0.373633]
[1742256062920,0.0637,84018.0,84017.0,0.2546]
[1742256063126,0.0637,84018.0,84017.0,0.310033]
[1742256063525,0.0637,84018.0,84017.0,0.342533]
[1742256063729,0.0637,84018.0,84017.0,0.375333]
[1742256064727,0.0637,84018.0,84017.0,0.185333]
[1742256064931,0.07535758,84018.0,84017.0,0.120033]
[1742256065118,0.56873131,84018.0,84017.0,0.001]
[1742256065318,0.57468462,84018.0,84017.0,0.001]
[1742256065722,0.45565302,84018.0,84017.0,0.120033]
[1742256066324,0.44399544,84018.0,84017.0,0.120033]
[1742256066532,0.44399544,84018.0,84017.0,0.184033]
[1742256068023,0.44406113,84018.0,84017.0,0.184033]
[1742256068926,0.44406099,84018.0,84017.0,0.184033]
[1742256069336,0.43810747,84018.0,84017.0,0.184033]
[1742256069920,0.4381091,84018.0,84017.0,0.184033]
[1742256070836,0.0773091,84018.0,84017.0,0.5566544]
[1742256071139,0.0637,84018.0,84017.0,0.7810544]
[1742256072724,0.0637,84018.0,84017.0,0.769233]
[1742256072928,0.0637,84018.0,84017.0,0.408433]
[1742256074034,0.0637,84018.0,84017.0,0.42027936]
[1742256076036,0.0637,84018.0,84017.0,0.408433]
[1742256076732,0.0637,84018.0,84017.0,0.42057511]
[1742256076936,0.0637,84018.0,84017.0,0.31057511]
[1742256078023,0.0637,84018.0,84017.0,0.298433]
[1742256082435,0.0637,84018.0,84017.0,0.234433]
[1742256082636,0.19629631,84018.0,84017.0,0.120033]
[1742256082935,0.20224982,84018.0,84017.0,0.120033]
[1742256084836,0.20224982,84018.0,84017.0,0.001]
[1742256085046,0.119033,84017.0,84016.0,4e-05]
[1742256085239,0.13855122,84017.0,84016.0,4e-05]
[1742256085429,0.16975122,84017.0,84016.0,4e-05]
[1742256085632,0.1190373,84014.0,84013.0,0.1190378]
[1742256085832,0.61411552,84014.0,84013.0,0.1190378]
[1742256086342,0.61311552,84014.0,84013.0,0.1190378]
[1742256086541,0.64431552,84014.0,84013.0,0.1190378]
[1742256087146,0.6591459,84014.0,84013.0,0.1190378]
[1742256088035,0.6591459,84014.0,84013.0,0.1210378]
[1742256088344,0.67571552,84014.0,84013.0,0.1210378]
[1742256088541,0.67571552,84014.0,84013.0,0.002]
[1742256089738,0.6905459,84014.0,84013.0,0.002]
[1742256089942,0.67571552,84014.0,84013.0,0.002]
[1742256091047,0.1190387,84013.0,84012.0,4e-05]
[1742256091253,0.13755692,84013.0,84012.0,4e-05]
[1742256091454,0.13755692,84013.0,84005.0,0.1190496]
[1742256091455,0.1190486,84006.0,84005.0,0.1190496]
[1742256091750,0.61408682,84006.0,84005.0,0.1190496]
[1742256092449,0.67685757,84006.0,84005.0,0.1190496]
[1742256092843,0.67985757,84006.0,84005.0,0.1190496]
[1742256093450,0.11905,84005.0,84004.0,4e-05]
[1742256093644,0.1385388,84005.0,84004.0,4e-05]
[1742256093949,0.1688388,84005.0,84004.0,4e-05]
[1742256094252,0.2002388,84005.0,84004.0,4e-05]
[1742256094452,0.2002388,84005.0,84004.0,0.1190914]
[1742256095361,0.08418888,84005.0,84004.0,0.1190914]
[1742256095570,0.20028389,84005.0,84004.0,0.1190914]
[1742256096067,0.20028389,84005.0,84004.0,0.1512914]
[1742256096565,0.20028389,84005.0,84004.0,0.1190914]
[1742256098163,0.20623891,84005.0,84004.0,0.1190914]
[1742256098561,0.20623891,84005.0,84004.0,4e-05]
[1742256098763,0.20623882,84005.0,84004.0,4e-05]
[1742256098967,0.20623888,84005.0,84004.0,0.1190914]
[1742256099166,0.20028389,84005.0,84004.0,0.1190914]
[1742256099363,0.20623888,84005.0,84004.0,0.1190914]
[1742256100261,0.20028389,84005.0,84004.0,0.1190914]
[1742256100462,0.20028389,84005.0,84004.0,4e-05]
[1742256100658,0.20623895,84005.0,84004.0,4e-05]
[1742256101264,0.20028389,84005.0,84004.0,4e-05]
[1742256101769,0.20026752,84005.0,84004.0,4e-05]
[1742256104162,0.20622261,84005.0,84004.0,4e-05]
[1742256105572,0.1190557,84001.0,84000.0,0.1]
[1742256105775,0.49932831,84001.0,84000.0,0.1]
[1742256106361,0.56152831,84001.0,84000.0,0.1]
[1742256106875,0.56352831,84001.0,84000.0,0.1]
[1742256107874,0.56552831,84001.0,84000.0,0.1]
[1742256108075,0.56552831,84001.0,83975.0,0.0601456]
[1742256108076,0.0595335,83993.0,83975.0,0.0601456]
[1742256108275,0.0595335,83993.0,83958.0,0.3608]
[1742256108276,0.1190769,83986.0,83985.0,0.0964]
[1742256108466,0.61395072,83986.0,83985.0,0.2154784]
[1742256108667,0.67615072,83986.0,83985.0,0.2154784]
[1742256109069,0.67615072,83986.0,83985.0,0.0964]
[1742256111175,0.67615072,83986.0,83985.0,0.0984]
[1742256111569,0.68796578,83986.0,83985.0,0.0964]
[1742256113271,0.1191039,83967.0,83966.0,0.1786559]
[1742256114183,0.1191067,83965.0,83964.0,0.0595539]
[1742256114686,0.1151067,83965.0,83964.0,0.0595539]
[1742256115781,0.1151067,83965.0,83964.0,0.0645539]
[1742256116286,0.1793067,83965.0,83964.0,0.0645539]
[1742256116473,0.001,83965.0,83964.0,0.0645539]
[1742256116670,0.001,83965.0,83964.0,0.2176539]
[1742256117692,0.1201067,83965.0,83964.0,0.2176539]
[1742256118887,0.001,83965.0,83964.0,0.2176539]
[1742256119785,0.3608,83971.0,83970.0,0.1190996]
[1742256119985,0.3608,83971.0,83970.0,0.2090996]
[1742256121588,0.3608,83971.0,83970.0,0.2120996]
[1742256121990,0.4798982,83971.0,83970.0,0.1220996]
[1742256122787,0.5433982,83971.0,83970.0,0.1220996]
[1742256124587,0.3921,83971.0,83970.0,0.1220996]
[1742256124792,0.3608,83971.0,83970.0,0.2220996]
[1742256125990,0.3608,83971.0,83970.0,0.2210996]
[1742256131201,0.394,83971.0,83970.0,0.2210996]
[1742256134295,0.40753108,83971.0,83970.0,0.3128996]
[1742256134986,0.394,83971.0,83970.0,0.3128996]
[1742256135192,0.40753449,83971.0,83970.0,0.3128996]
[1742256135399,0.394,83971.0,83970.0,0.3128996]
[1742256136191,0.40753894,83971.0,83970.0,0.3128996]
[1742256136390,0.394,83971.0,83970.0,0.3128996]
[1742256137302,0.4075409,83971.0,83970.0,0.3128996]
[1742256137895,0.394,83971.0,83970.0,0.3128996]
[1742256138093,0.40754275,83971.0,83970.0,0.3128996]
[1742256138805,0.40754272,83971.0,83970.0,0.3128996]
[1742256139506,0.40744193,83971.0,83970.0,0.3128996]
[1742256141195,0.40744271,83971.0,83970.0,0.3128996]
[1742256141901,0.39389921,83971.0,83970.0,0.3128996]
[1742256142503,0.00017861,83975.0,83974.0,0.119094]
[1742256142702,0.00017861,83975.0,83974.0,0.266114]
[1742256142999,0.01372455,83975.0,83974.0,0.266114]
[1742256143205,0.01372455,83975.0,83974.0,0.308514]
[1742256143708,0.13281705,83975.0,83974.0,0.275814]
[1742256144003,0.19731705,83975.0,83974.0,0.161494]
[1742256144195,0.1973179,83975.0,83974.0,0.129094]
[1742256144606,0.1973179,83975.0,83974.0,0.119094]
[1742256145104,0.1973179,83975.0,83974.0,0.120094]
[1742256145610,0.0782254,83975.0,83974.0,0.120094]
[1742256145799,0.1973179,83975.0,83974.0,0.120094]
[1742256147000,0.20327416,83975.0,83974.0,0.120094]
[1742256147902,0.18377111,83975.0,83974.0,0.120094]
[1742256148210,0.20330451,83975.0,83974.0,0.120094]
[1742256148897,0.57897784,83975.0,83974.0,0.120094]
[1742256149097,0.56410451,83975.0,83974.0,0.120094]
[1742256149409,0.1190982,83971.0,83970.0,4e-05]
[1742256149712,0.26777636,83971.0,83970.0,4e-05]
[1742256150006,0.2529116,83971.0,83970.0,4e-05]
[1742256150405,0.1191039,83967.0,83966.0,0.1191039]
[1742256150707,0.4994373,83967.0,83966.0,0.1191439]
[1742256151103,0.4974373,83967.0,83966.0,0.1191439]
[1742256151305,0.5586373,83967.0,83966.0,0.1191453]
[1742256151998,0.5586373,83967.0,83966.0,0.1221453]
[1742256154308,0.5596373,83967.0,83966.0,0.1221453]
[1742256154509,0.5616373,83967.0,83966.0,0.1191453]
[1742256155303,0.1786721,83961.0,83958.0,0.0595577]
[1742256155501,0.4799152,83959.0,83958.0,0.1786729]
[1742256155705,0.49343625,83959.0,83958.0,0.1786729]
[1742256155904,0.55723625,83959.0,83958.0,0.1786729]
[1742256156913,0.43812105,83959.0,83958.0,0.1786729]
[1742256157216,0.3638,83967.0,83966.0,0.1191053]
[1742256157512,0.01651665,83967.0,83966.0,0.1191053]
[1742256157911,0.003,83967.0,83966.0,0.1191053]
[1742256158109,0.003,83967.0,83966.0,0.1822053]
[1742256158323,0.1190988,83971.0,83970.0,0.1190996]
[1742256158802,0.1326646,83971.0,83970.0,0.1190996]
[1742256158999,0.4934646,83971.0,83970.0,0.1190996]
[1742256159404,0.4934646,83971.0,83970.0,0.1818996]
[1742256159605,0.4934646,83971.0,83970.0,0.1190996]
[1742256160313,0.4964646,83971.0,83970.0,0.1190996]
[1742256160815,0.5004646,83971.0,83970.0,0.1190996]
[1742256161112,0.5938646,83971.0,83970.0,0.1190996]
[1742256161499,0.4440658,83971.0,83970.0,0.1190996]
[1742256161909,0.563164,83971.0,83970.0,0.1190996]
[1742256166110,0.202364,83971.0,83970.0,0.1190996]
[1742256166710,0.20239651,83971.0,83970.0,0.1190996]
[1742256169323,0.56319651,83971.0,83970.0,0.1190996]
[1742256169618,0.56319346,83971.0,83970.0,0.1190996]
[1742256172210,0.20239346,83971.0,83970.0,0.1190996]
[1742256172413,0.56319346,83971.0,83970.0,0.1190996]
[1742256173422,0.56319346,83971.0,83970.0,0.1824996]
[1742256177425,0.56915033,83971.0,83970.0,0.1824996]
[1742256180019,0.45007142,83971.0,83970.0,0.1824996]
[1742256180211,0.02061455,83971.0,83970.0,0.1824996]
[1742256180416,0.02061543,83971.0,83970.0,0.4024996]
[1742256180717,0.007,83971.0,83970.0,0.5124996]
[1742256180921,0.007,83971.0,83970.0,0.4024996]
[1742256181119,0.007,83971.0,83970.0,0.41414816]
[1742256181428,0.11432,83993.0,83989.0,0.1190727]
[1742256181614,0.26351747,83990.0,83989.0,0.1190727]
[1742256182018,0.01364367,83990.0,83989.0,0.1190727]
[1742256182322,0.01364367,83990.0,83989.0,0.1518727]
[1742256182631,0.01364367,83990.0,83989.0,0.2618727]
[1742256182632,0.01864367,83990.0,83989.0,0.2618727]
[1742256182932,0.05094367,83990.0,83989.0,0.2943727]
[1742256183115,0.05091491,83990.0,83989.0,0.2943727]
[1742256183317,0.0373,83990.0,83989.0,0.2943727]
[1742256183624,0.0423,83990.0,83989.0,0.2953727]
[1742256184014,0.01,83990.0,83989.0,0.3953727]
[1742256184217,0.01,83990.0,83989.0,0.76513482]
[1742256184620,0.00017861,83998.0,83997.0,0.1190613]
[1742256184816,0.3567243,84005.0,84001.0,0.1190557]
[1742256185328,0.3567243,84005.0,84001.0,0.24075063]
[1742256185724,0.0301,84004.0,84001.0,0.2923557]
[1742256186028,0.0301,84004.0,84003.0,0.1190528]
[1742256186029,0.0627,84004.0,84003.0,0.1190528]
[1742256186225,0.0627,84004.0,84003.0,0.2333728]
[1742256186424,0.1817514,84004.0,84003.0,0.2333728]
[1742256186618,0.1817514,84004.0,84003.0,0.1190528]
[1742256187032,0.0627,84004.0,84003.0,0.1190528]
[1742256187330,0.0657,84004.0,84003.0,0.1190528]
[1742256188339,0.1847514,84004.0,84003.0,0.1190528]
[1742256188524,0.1190599,83999.0,83998.0,0.1190551]
[1742256188726,0.4798599,83999.0,83998.0,0.1190551]
[1742256189532,0.5425599,83999.0,83998.0,0.178583]
[1742256189729,0.5465599,83999.0,83998.0,0.178583]
[1742256190033,0.5495599,83999.0,83998.0,0.178583]
[1742256190337,0.5465599,83999.0,83998.0,0.0595279]
[1742256190532,0.5495599,83999.0,83998.0,0.0595279]
[1742256191523,0.56297829,83999.0,83998.0,0.0595279]
[1742256191723,0.55897829,83999.0,83998.0,0.0595279]
[1742256191929,0.56297829,83999.0,83998.0,0.0595279]
[1742256192334,0.56299411,83999.0,83998.0,0.0595279]
[1742256193934,0.57496979,83999.0,83998.0,0.0595279]
[1742256195531,0.1190613,83997.0,83996.0,0.0595307]
[1742256195724,0.13249551,83997.0,83996.0,0.0595307]
[1742256196234,0.13249129,83997.0,83996.0,0.0595307]
[1742256196420,0.1190613,83997.0,83996.0,0.0595307]
[1742256196832,0.1354918,83997.0,83996.0,0.0595307]
[1742256197027,0.1220613,83997.0,83996.0,0.0595307]
[1742256197223,0.13849835,83997.0,83996.0,0.0595307]
[1742256199835,0.13849835,83997.0,83992.0,4e-05]
[1742256199836,0.07896835,83997.0,83992.0,4e-05]
[1742256200032,0.119067,83993.0,83992.0,0.1786368]
[1742256200236,0.24678803,83993.0,83992.0,0.1786368]
[1742256200436,0.233347,83993.0,83992.0,0.1786368]
[1742256200633,0.2467897,83993.0,83992.0,0.1786368]
[1742256200937,0.24683722,83993.0,83992.0,0.1786368]
[1742256201327,0.24983722,83993.0,83992.0,0.1785968]
[1742256202230,0.25183722,83993.0,83992.0,0.1785968]
[1742256204234,0.25183722,83993.0,83992.0,0.0595332]
[1742256208944,0.01849022,83993.0,83992.0,0.0595332]
[1742256209145,0.005,83993.0,83992.0,0.0595332]
[1742256209443,0.01843002,83993.0,83992.0,0.0595332]
[1742256210037,0.19949702,83993.0,83992.0,0.0595332]
[1742256210242,0.23219702,83993.0,83992.0,0.0595332]
[1742256210434,0.23815254,83993.0,83992.0,0.0595332]
[1742256211346,0.23615254,83993.0,83992.0,0.0595332]
[1742256211536,0.23815254,83993.0,83992.0,0.0595332]
[1742256211736,0.1190699,83991.0,83990.0,0.0595749]
[1742256211943,0.49925544,83991.0,83990.0,0.0595749]
[1742256212146,0.38018554,83991.0,83981.0,0.11926151]
[1742256212334,0.1190812,83983.0,83982.0,0.1824805]
[1742256212535,0.60771122,83983.0,83982.0,0.1824805]
[1742256212735,0.61366739,83983.0,83982.0,0.1824805]
[1742256213244,0.67666746,83983.0,83982.0,0.1190805]
[1742256214137,0.1190826,83982.0,83981.0,0.00017861]
[1742256214347,0.20146886,83982.0,83981.0,0.00017861]
[1742256214548,0.20046886,83982.0,83981.0,0.00017861]
[1742256215352,0.20046886,83982.0,83981.0,0.11926261]
[1742256216039,0.20046886,83982.0,83981.0,0.00017861]
[1742256216440,0.20546886,83982.0,83981.0,0.11926261]
[1742256217044,0.20546886,83982.0,83981.0,0.00017861]
[1742256219245,0.08738626,83982.0,83971.0,0.1786399]
[1742256219446,0.4799042,83972.0,83971.0,0.1786399]
[1742256219641,0.60761422,83972.0,83971.0,0.1786399]
[1742256219857,0.61934148,83972.0,83971.0,0.1786399]
[1742256220054,0.61934148,83972.0,83964.0,0.1190993]
[1742256220055,0.0595547,83965.0,83964.0,0.1190993]
[1742256220352,0.1738347,83965.0,83964.0,0.1190993]
[1742256220554,0.2929428,83965.0,83964.0,0.0595511]
[1742256221462,0.6527428,83965.0,83964.0,0.0595511]
[1742256222257,0.66617634,83965.0,83964.0,0.0625511]
[1742256222959,0.48851354,83965.0,83964.0,0.0625511]
[1742256223151,0.47508,83965.0,83964.0,0.0625511]
[1742256223351,0.5941867,83965.0,83964.0,0.0625511]
[1742256223553,0.5941867,83965.0,83964.0,0.0645511]
[1742256223957,0.5941867,83965.0,83964.0,0.1281511]
[1742256224159,0.5941867,83965.0,83964.0,0.0645511]
[1742256224356,0.60754314,83965.0,83964.0,0.0645511]
[1742256224647,0.5941867,83965.0,83964.0,0.0645511]
[1742256225660,0.60751749,83965.0,83964.0,0.0645511]
[1742256226075,0.1191226,83959.0,83947.0,0.00880795]
[1742256226273,0.1191226,83959.0,83958.0,0.1191103]
[1742256226479,0.2929616,83959.0,83958.0,0.1191103]
[1742256226663,0.3255616,83959.0,83958.0,0.1191103]
[1742256227264,0.33887454,83959.0,83958.0,0.1191103]
[1742256227765,0.33887454,83959.0,83958.0,0.1221103]
[1742256227973,0.33987454,83959.0,83958.0,0.1221103]
[1742256228178,0.33987454,83959.0,83958.0,0.003]
[1742256228676,0.33887454,83959.0,83958.0,0.007]
[1742256229577,0.33887454,83959.0,83942.0,0.0654]
[1742256229578,0.1786933,83951.0,83950.0,0.1191274]
[1742256229874,0.6538133,83951.0,83950.0,0.1191274]
[1742256230079,0.1787061,83945.0,83944.0,0.0595664]
[1742256230274,0.1191408,83941.0,83940.0,0.1845413]
[1742256230477,0.4799408,83941.0,83940.0,0.2545413]
[1742256231277,0.3608,83941.0,83940.0,0.1845413]
[1742256231779,0.3588,83941.0,83940.0,0.1845413]
[1742256231976,0.3588,83941.0,83940.0,0.1865413]
[1742256233378,0.3608,83963.0,83947.0,0.0595654]
[1742256233581,0.59442231,83953.0,83952.0,0.1191252]
[1742256234277,0.11449861,83953.0,83952.0,0.1833252]
[1742256234576,0.11930231,83953.0,83952.0,0.1833252]
[1742256234767,0.12130231,83953.0,83952.0,0.1833252]
[1742256235375,0.12230231,83953.0,83952.0,0.1833252]
[1742256235878,0.12430231,83953.0,83952.0,0.1833252]
[1742256236984,0.48510231,83953.0,83952.0,0.1833252]
[1742256245785,0.51670231,83953.0,83952.0,0.1833252]
[1742256247585,0.54930231,83953.0,83952.0,0.1833252]
[1742256249991,0.54930231,83953.0,83940.0,0.1191408]
[1742256249992,0.5638046,83953.0,83940.0,0.1191408]
[1742256250297,0.1191436,83941.0,83940.0,0.0595674]
[1742256251298,0.1498436,83941.0,83940.0,0.0615674]
[1742256251485,0.1822436,83941.0,83940.0,0.0935674]
[1742256252481,0.0631,83941.0,83940.0,0.0915674]
[1742256252686,0.0631,83941.0,83940.0,0.2035674]
[1742256252891,0.0631,83941.0,83940.0,0.0935674]
[1742256253887,0.00064,83945.0,83944.0,0.1191365]
[1742256254187,0.032,83948.0,83947.0,0.1191323]
[1742256254494,0.1511308,83948.0,83947.0,0.1191323]
[1742256255804,0.1521308,83948.0,83947.0,0.1191323]
[1742256260298,0.1191337,83946.0,83945.0,0.0595668]
[1742256260497,0.49326385,83946.0,83945.0,0.0595668]
[1742256261003,0.52566385,83946.0,83945.0,0.0595668]
[1742256262004,0.52666385,83946.0,83945.0,0.0595668]
[1742256267801,0.40753015,83946.0,83943.0,0.0595682]
[1742256268002,0.1191365,83944.0,83943.0,0.1787049]
[1742256268306,0.13246665,83944.0,83943.0,0.1787049]
[1742256268505,0.22886665,83944.0,83943.0,0.1787049]
[1742256269107,0.22886665,83944.0,83943.0,0.1797049]
[1742256271905,0.22888164,83944.0,83943.0,0.1797049]
[1742256272305,0.10974514,83944.0,83943.0,0.1797049]
[1742256272508,0.0641,83944.0,83943.0,0.2897049]
[1742256272704,0.07745224,83944.0,83943.0,0.2897049]
[1742256273009,0.0641,83944.0,83943.0,0.2897049]
[1742256273210,0.0641,83944.0,83943.0,0.1797049]
[1742256273907,0.0641,83944.0,83943.0,0.2697049]
[1742256274413,0.0595593,83957.0,83951.0,0.1191252]
[1742256274599,0.15836901,83952.0,83951.0,0.1191252]
[1742256274798,0.27749421,83952.0,83951.0,0.1191252]
[1742256275007,0.2641452,83952.0,83951.0,0.1191252]
[1742256275706,0.27750496,83952.0,83951.0,0.1191252]
[1742256276010,0.31160493,83952.0,83951.0,0.1191252]
[1742256277003,0.31360493,83952.0,83951.0,0.1191252]
[1742256278914,0.19447973,83952.0,83951.0,0.1191252]
[1742256279508,0.31360493,83952.0,83951.0,0.1191252]
[1742256283109,0.3136233,83952.0,83951.0,0.1191252]
[1742256284120,0.1993033,83952.0,83951.0,0.1191252]
[1742256285806,0.1993033,83952.0,83951.0,0.1515252]
[1742256288421,0.21108217,83952.0,83951.0,0.1515252]
[1742256288721,0.1993033,83952.0,83951.0,0.1515252]
[1742256289721,0.1993033,83952.0,83951.0,0.1833252]
[1742256290121,0.19933268,83952.0,83951.0,0.1833252]
[1742256297833,0.08020748,83952.0,83951.0,0.2733252]
[1742256298528,0.3608,83964.0,83961.0,0.0595562]
[1742256298829,0.07556259,83963.0,83962.0,0.184811]
[1742256299019,0.2661097,83977.0,83976.0,0.1190911]
[1742256299217,0.53191066,83977.0,83976.0,0.1190911]
[1742256299431,0.5319103,83977.0,83976.0,0.1190911]
[1742256299734,0.5319103,83977.0,83976.0,0.1847911]
[1742256300035,0.37416413,83977.0,83976.0,0.1847911]
[1742256300331,0.01336413,83977.0,83976.0,0.1847911]
[1742256300538,0.02336413,83977.0,83976.0,0.1847911]
[1742256301826,0.02336413,83977.0,83976.0,0.2747911]
[1742256302332,0.01,83977.0,83976.0,0.2747911]
[1742256304641,0.0649,83984.0,83983.0,0.1190812]
[1742256304837,0.0649,83984.0,83983.0,0.2090812]
[1742256305035,0.0649,83984.0,83982.0,0.1799812]
[1742256305228,0.1190812,83983.0,83982.0,0.1799812]
[1742256305638,0.1826812,83983.0,83982.0,0.1799812]
[1742256306834,0.1886812,83983.0,83982.0,0.1799812]
[1742256307340,0.1916812,83983.0,83982.0,0.1799812]
[1742256312642,0.0726,83983.0,83982.0,0.1799812]
[1742256313141,0.1916812,83983.0,83982.0,0.1799812]
[1742256314135,0.0726,83983.0,83982.0,0.1799812]
[1742256317733,0.1916812,83983.0,83982.0,0.1799812]
[1742256318029,0.0726,83983.0,83982.0,0.1799812]
[1742256319341,0.009,83983.0,83982.0,0.3999812]
[1742256319540,0.3608,83993.0,83982.0,0.3999812]
[1742256319541,0.3608,83993.0,83992.0,0.1190684]
[1742256320132,0.3608,83993.0,83992.0,0.2290684]
[1742256320841,0.3608,83993.0,83992.0,0.2914684]
[1742256321041,0.482867,83993.0,83992.0,0.2914684]
[1742256321245,0.483867,83993.0,83992.0,0.2914684]
[1742256322038,0.547767,83993.0,83992.0,0.2914684]
[1742256322445,0.546767,83993.0,83992.0,0.2914684]
[1742256322642,0.547767,83993.0,83992.0,0.2914684]
[1742256323750,0.4287,83993.0,83992.0,0.1814684]
[1742256324943,0.3648,83993.0,83992.0,0.1814684]
[1742256325146,0.004,83993.0,83992.0,0.4714684]
[1742256325541,0.004,83993.0,83992.0,0.3714684]
[1742256325746,0.004,83993.0,83992.0,0.4714684]
[1742256325945,0.004,83993.0,83992.0,0.3714684]
[1742256326142,0.123067,83993.0,83992.0,0.3714684]
[1742256326954,0.123067,83993.0,83992.0,0.1814684]
[1742256327158,0.185767,83993.0,83992.0,0.1814684]
[1742256328745,0.0667,83993.0,83992.0,0.1814684]
[1742256328956,0.185767,83993.0,83992.0,0.1814684]
[1742256330851,0.0667,83993.0,83992.0,0.1814684]
[1742256332253,0.185767,83993.0,83992.0,0.1814684]
[1742256333254,0.185767,83993.0,83992.0,0.1190684]
[1742256333457,0.19925949,83993.0,83992.0,0.1190684]
[1742256335153,0.19925949,83993.0,83992.0,0.1497684]
[1742256337558,0.19925949,83993.0,83992.0,0.1797684]
[1742256338060,0.08019249,83993.0,83992.0,0.1797684]
[1742256338368,0.004,83993.0,83992.0,0.3797684]
[1742256338666,0.11441861,84001.0,83997.0,0.1785916]
[1742256338667,0.0316,83998.0,83997.0,0.1785916]
[1742256338958,0.1506599,83998.0,83997.0,0.1785916]
[1742256339165,0.1808599,83998.0,83997.0,0.1785916]
[1742256339357,0.0618,83998.0,83997.0,0.1785916]
[1742256339749,0.0618,83998.0,83997.0,0.2785916]
[1742256339960,0.0302,83998.0,83997.0,0.2785916]
[1742256340162,0.0302,83998.0,83997.0,0.3104916]
[1742256340461,0.0302,83998.0,83997.0,0.6712916]
[1742256340851,0.0618,83998.0,83997.0,0.3104916]
[1742256342866,0.1808599,83998.0,83997.0,0.3104916]
[1742256344247,0.1808599,83998.0,83997.0,0.2104916]
[1742256345058,0.19434544,83998.0,83997.0,0.2104916]
[1742256346572,0.19434544,83998.0,83997.0,0.1785916]
[1742256347056,0.19434544,83998.0,83997.0,0.2097916]
[1742256347867,0.55514544,83998.0,83997.0,0.2097916]